bitfinex/quotes_ETHUSD_20240714
["timestamp","ask_amount","ask_price","bid_price","bid_amount"]
[1720993409071,0.0361796,3243.3,3242.5,2.3495]
[1720993409470,0.03792863,3243.2,3242.5,2.3495]
[1720993410071,0.0361796,3243.3,3242.5,2.3495]
[1720993410580,0.03792777,3243.2,3242.5,2.3495]
[1720993411345,0.0361796,3243.3,3242.5,2.3495]
[1720993411794,0.03806896,3243.2,3242.6,0.55]
[1720993413584,0.0361796,3243.3,3242.6,0.55]
[1720993413957,0.03806711,3243.2,3242.6,0.55]
[1720993414766,0.03806711,3243.2,3242.8,1.098]
[1720993415061,0.03680994,3243.1,3242.9,0.55]
[1720993415436,0.0361796,3243.3,3242.7,0.55]
[1720993415642,0.0368089,3243.0,3242.7,0.55]
[1720993415881,0.0361796,3243.3,3242.7,0.55]
[1720993416066,0.03680646,3242.9,3242.7,0.55]
[1720993416267,0.0361796,3243.3,3242.7,0.55]
[1720993416485,0.03680403,3242.8,3242.7,0.55]
[1720993416658,0.0361796,3243.3,3242.7,0.55]
[1720993417073,0.03681211,3243.2,3242.7,0.55]
[1720993418075,0.03681211,3243.2,3243.0,1.098]
[1720993418274,0.0361796,3243.3,3243.1,0.55]
[1720993418679,0.0361796,3243.3,3243.2,2.335]
[1720993418889,0.0361796,3243.3,3243.2,2.885]
[1720993419603,0.0361796,3243.3,3243.2,3.983]
[1720993425014,0.0361796,3243.3,3243.2,8.31219]
[1720993425708,0.0361796,3243.3,3243.2,10.77888]
[1720993425867,1e-08,3243.3,3243.2,10.77888]
[1720993427918,0.48371763,3244.1,3243.4,2.46649]
[1720993428113,0.48371763,3244.1,3243.8,1.098]
[1720993428468,0.48371763,3244.1,3243.9,0.55]
[1720993429179,2.316,3244.5,3243.9,0.55]
[1720993429611,0.48362524,3244.1,3243.9,0.55]
[1720993430866,0.48362524,3244.1,3243.8,0.55]
[1720993431068,2.316,3244.5,3243.8,0.55]
[1720993432626,2.316,3244.5,3242.6,0.62985206]
[1720993432627,2.5476,3244.5,3243.2,1.7]
[1720993432767,2.4975,3244.2,3243.1,1.098]
[1720993432969,0.2316,3244.5,3243.1,1.098]
[1720993432970,2.4975,3244.0,3243.1,1.098]
[1720993433977,2.4975,3244.0,3243.2,0.55]
[1720993434183,1.098,3243.6,3242.4,7.28]
[1720993434426,2.3715,3243.5,3242.5,1.098]
[1720993434947,0.03521999,3243.4,3242.5,1.098]
[1720993435226,0.03521999,3243.4,3242.6,1.098]
[1720993435395,2.3715,3243.5,3242.6,1.098]
[1720993435596,2.71845,3243.5,3242.6,1.098]
[1720993435825,0.03391367,3243.4,3242.6,1.098]
[1720993436186,0.03390959,3243.3,3242.6,1.098]
[1720993436386,2.71845,3243.5,3242.6,1.098]
[1720993436708,0.03391203,3243.4,3242.6,1.098]
[1720993437529,2.71845,3243.5,3242.7,0.55]
[1720993437893,0.03386835,3243.4,3242.7,0.55]
[1720993439335,0.30910018,3243.4,3242.7,0.55]
[1720993439534,0.30910018,3243.4,3242.2,2.3039]
[1720993439535,0.30910018,3243.4,3242.6,1.098]
[1720993439723,0.30910018,3243.4,3242.7,0.55]
[1720993439925,0.27523183,3243.4,3242.7,0.55]
[1720993440319,2.71845,3243.5,3242.8,3.4019]
[1720993440652,0.03381822,3243.4,3242.9,0.55]
[1720993441053,0.03381822,3243.4,3243.0,1.098]
[1720993441224,0.03381822,3243.4,3243.1,0.55]
[1720993441539,2.258,3243.8,3243.0,1.098]
[1720993441751,0.03273606,3243.3,3243.1,0.55]
[1720993441909,2.258,3243.8,3243.1,0.55]
[1720993442106,0.03273362,3243.2,3243.1,0.55]
[1720993442421,0.03273413,3243.2,3243.1,0.55]
[1720993442803,2.258,3243.8,3243.1,0.55]
[1720993443005,0.2258,3243.7,3243.0,0.55]
[1720993443547,2.258,3243.8,3243.0,0.55]
[1720993444229,2.258,3243.8,3242.9,1.098]
[1720993444412,2.258,3243.8,3243.0,0.55]
[1720993444746,2.3996,3244.3,3243.1,2.3898]
[1720993444911,0.23996,3244.2,3243.2,0.55]
[1720993445112,0.27280986,3244.2,3243.2,0.55]
[1720993445331,2.4369,3244.1,3243.2,0.55]
[1720993445642,3.56774743,3244.1,3243.2,0.55]
[1720993447483,2.4369,3244.0,3243.3,2.3976]
[1720993447763,0.35677474,3243.9,3242.9,1.098]
[1720993448118,0.03283605,3243.8,3242.9,1.098]
[1720993448343,2.4369,3243.7,3242.7,9.6776]
[1720993448542,2.46974576,3243.7,3242.8,1.098]
[1720993449061,2.4369,3243.7,3242.8,1.098]
[1720993449749,0.03284412,3243.6,3242.8,1.098]
[1720993450062,2.4369,3243.7,3242.8,1.098]
[1720993450259,2.4369,3243.7,3242.9,0.55]
[1720993450561,2.79039,3243.7,3242.9,0.55]
[1720993450717,0.03067904,3243.6,3242.5,1.7]
[1720993450914,2.4369,3243.5,3242.9,1.098]
[1720993451242,2.46757661,3243.5,3242.3,3.0]
[1720993451448,2.4369,3243.5,3242.7,1.098]
[1720993451753,0.24369,3243.4,3242.7,1.098]
[1720993452923,0.24369,3243.4,3242.8,0.55]
[1720993454746,0.24369,3243.4,3242.7,0.55]
[1720993456160,0.24369,3243.4,3242.8,1.098]
[1720993456326,2.4369,3243.5,3242.9,0.55]
[1720993456527,0.03064496,3243.3,3242.9,0.55]
[1720993456855,2.4369,3243.5,3242.9,0.55]
[1720993457267,0.03065028,3243.4,3242.9,0.55]
[1720993458934,2.3764,3243.8,3243.0,1.098]
[1720993459264,2.3764,3243.8,3243.1,0.55]
[1720993459622,0.03055624,3243.7,3243.1,0.55]
[1720993461664,2.3764,3243.8,3243.2,1.098]
[1720993461833,0.03057897,3243.7,3243.3,0.55]
[1720993462035,2.3764,3243.8,3243.3,0.55]
[1720993462252,0.03057897,3243.7,3243.3,0.55]
[1720993462559,2.3764,3243.8,3243.3,0.55]
[1720993462766,0.03058837,3243.6,3243.3,0.55]
[1720993463064,2.3764,3243.8,3243.3,0.55]
[1720993463065,0.03057805,3243.5,3243.3,0.55]
[1720993463280,2.3764,3243.8,3243.3,0.55]
[1720993463569,0.03057562,3243.4,3243.3,0.55]
[1720993463726,2.3764,3243.8,3243.3,0.55]
[1720993463923,0.03058858,3243.4,3243.3,0.55]
[1720993464151,2.3764,3243.8,3243.3,0.55]
[1720993464336,0.03058686,3243.4,3243.3,0.55]
[1720993464540,2.3764,3243.8,3243.3,0.55]
[1720993464743,0.03058686,3243.4,3243.3,0.55]
[1720993464993,2.3764,3243.8,3243.3,0.55]
[1720993465457,0.03059258,3243.7,3243.3,0.55]
[1720993465757,2.3764,3243.8,3243.3,0.55]
[1720993465976,0.03059015,3243.6,3243.3,0.55]
[1720993466272,0.03058851,3243.5,3243.3,0.55]
[1720993466426,2.3764,3243.8,3243.3,0.55]
[1720993466626,0.03059251,3243.7,3243.3,0.55]
[1720993466934,2.3764,3243.8,3243.3,0.55]
[1720993467250,0.03062009,3243.7,3243.3,0.55]
[1720993467433,3.0,3244.6,3243.3,0.55]
[1720993467434,2.4497,3244.0,3243.3,0.55]
[1720993467641,0.03062495,3243.9,3243.3,0.55]
[1720993468575,0.03062495,3243.9,3243.6,1.097]
[1720993468742,0.03062495,3243.9,3243.7,0.55]
[1720993469084,0.0306753,3243.8,3243.7,0.55]
[1720993469281,2.3255,3244.3,3243.7,0.55]
[1720993469483,0.03070084,3243.8,3243.7,0.55]
[1720993469772,2.3255,3244.3,3243.7,0.55]
[1720993469948,0.03069919,3243.8,3243.7,0.55]
[1720993470134,2.3255,3244.3,3243.7,1.647]
[1720993470335,0.03073222,3243.8,3243.7,1.647]
[1720993470575,2.3255,3244.3,3243.7,1.647]
[1720993470873,2.3299,3244.7,3243.7,1.647]
[1720993471078,2.3299,3245.1,3243.9,1.097]
[1720993471245,3.4269,3245.1,3244.0,0.55]
[1720993471775,0.03079264,3245.0,3244.0,0.55]
[1720993472067,0.34576926,3244.9,3244.0,0.55]
[1720993472494,2.33328778,3244.8,3244.0,0.55]
[1720993475635,2.33328778,3244.8,3243.2,1.7]
[1720993475636,2.3025,3244.4,3243.2,1.7]
[1720993475843,1.12789044,3244.3,3243.2,2.797]
[1720993476063,1.097,3244.3,3243.2,2.797]
[1720993476270,0.33995,3244.2,3243.2,2.797]
[1720993476478,0.37083722,3244.2,3243.2,2.797]
[1720993477144,2.67333722,3244.2,3243.2,2.797]
[1720993477369,2.67333722,3244.2,3243.3,0.55]
[1720993478979,2.67333722,3244.2,3243.4,1.097]
[1720993479182,2.67333722,3244.2,3243.5,0.55]
[1720993479183,0.26733372,3244.1,3243.5,0.55]
[1720993479478,0.03084754,3244.0,3243.5,0.55]
[1720993479679,0.03084754,3244.0,3243.6,1.097]
[1720993479994,2.4975,3244.2,3243.7,0.55]
[1720993480183,3.5945,3244.7,3243.7,0.55]
[1720993480355,0.03083777,3244.1,3243.7,0.55]
[1720993480681,0.03083534,3244.0,3243.8,1.097]
[1720993480891,2.4975,3244.7,3243.9,0.55]
[1720993481880,3.0,3244.8,3243.9,0.55]
[1720993482075,4.097,3244.9,3243.9,0.55]
[1720993482277,0.65708,3244.8,3243.9,0.55]
[1720993483805,0.65708,3244.8,3243.7,0.55]
[1720993484002,0.65708,3244.8,3243.8,1.097]
[1720993484209,0.65708,3244.8,3243.9,0.55]
[1720993484210,1.097,3244.7,3243.9,0.55]
[1720993484388,1.097,3244.7,3243.7,1.647]
[1720993484690,1.097,3244.7,3243.7,0.55]
[1720993485026,2.4672,3244.6,3243.7,0.55]
[1720993485934,2.4672,3244.6,3243.2,2.46668]
[1720993485935,2.4672,3244.6,3243.5,1.097]
[1720993486108,2.4672,3244.6,3243.1,6.64667]
[1720993486109,1.45342,3244.5,3243.1,6.64667]
[1720993486437,1.45342,3244.5,3243.3,1.097]
[1720993486715,1.45342,3244.5,3243.1,6.64667]
[1720993486925,1.45342,3244.5,3243.5,1.097]
[1720993487074,1.45342,3244.5,3243.6,0.55]
[1720993487279,0.392062,3244.4,3243.6,0.55]
[1720993490791,0.03086631,3244.3,3243.6,0.55]
[1720993491178,0.392062,3244.4,3243.6,0.55]
[1720993491395,0.03086302,3244.2,3243.6,0.55]
[1720993491702,0.392062,3244.4,3243.6,0.55]
[1720993492026,0.03086145,3244.1,3243.6,0.55]
[1720993492224,0.392062,3244.4,3243.6,0.55]
[1720993492554,2.48626631,3244.3,3243.6,0.55]
[1720993493229,0.03086631,3244.3,3243.6,0.55]
[1720993493524,2.4564,3244.7,3243.6,0.55]
[1720993493724,0.03086993,3244.2,3243.6,0.55]
[1720993493888,2.4564,3244.7,3243.6,1.097]
[1720993494093,0.03086671,3244.1,3243.7,0.55]
[1720993494305,0.35534,3244.6,3243.7,0.55]
[1720993494543,0.03086506,3244.0,3243.7,0.55]
[1720993494706,0.35534,3244.6,3243.7,0.55]
[1720993494903,0.03086263,3243.9,3243.7,0.55]
[1720993495108,0.35534,3244.6,3243.7,0.55]
[1720993495307,0.03085934,3243.8,3243.7,0.55]
[1720993495614,2.4564,3244.7,3243.7,0.55]
[1720993496023,0.03087794,3244.6,3243.7,0.55]
[1720993496642,0.03087794,3244.6,3243.8,1.097]
[1720993496841,0.03087794,3244.6,3243.9,0.55]
[1720993497044,0.38930573,3244.6,3243.9,0.55]
[1720993498841,1.097,3244.3,3243.2,8.98]
[1720993499043,2.4041,3244.2,3243.2,8.98]
[1720993499240,2.4041,3244.0,3242.7,8.98]
[1720993499539,2.4041,3244.0,3243.0,1.097]
[1720993499959,2.4041,3244.0,3243.1,0.55]
[1720993500168,2.4041,3243.8,3243.1,0.55]
[1720993500354,2.4041,3243.8,3242.6,3.0]
[1720993500525,2.4041,3243.8,3242.9,1.097]
[1720993500726,0.03071752,3243.7,3242.9,1.097]
[1720993501959,0.03071752,3243.7,3243.0,0.55]
[1720993502662,0.03071752,3243.7,3243.1,1.097]
[1720993502867,0.03071752,3243.7,3243.2,0.55]
[1720993503076,0.30921027,3243.7,3243.2,0.55]
[1720993503446,0.30921027,3243.7,3243.0,0.55]
[1720993504059,2.3877,3243.6,3242.6,1.41960702]
[1720993504640,2.3877,3243.6,3242.8,1.097]
[1720993505224,2.3877,3243.6,3242.9,0.55]
[1720993505679,0.03053131,3243.5,3242.9,0.55]
[1720993507675,0.03053131,3243.5,3243.0,1.097]
[1720993507831,0.03053131,3243.5,3243.1,0.55]
[1720993508840,0.27235444,3243.5,3243.1,0.55]
[1720993509040,2.3631,3243.4,3243.0,0.55]
[1720993509472,0.03044716,3243.3,3243.0,0.55]
[1720993509644,0.03044716,3243.3,3243.1,1.097]
[1720993509980,2.3631,3243.8,3243.2,0.55]
[1720993510130,0.23631,3243.7,3243.2,0.55]
[1720993510330,2.3631,3243.8,3243.2,0.55]
[1720993511172,2.3631,3243.8,3242.9,1.097]
[1720993511173,2.3631,3243.8,3243.0,0.55]
[1720993526055,2.3631,3243.8,3243.1,2.254]
[1720993526352,2.3631,3243.8,3243.2,0.55]
[1720993527754,2.3631,3243.8,3243.0,0.55]
[1720993528464,2.3631,3243.8,3243.1,1.097]
[1720993528675,2.3631,3243.8,3243.2,0.55]
[1720993529262,3.4306,3244.2,3243.3,2.254]
[1720993529472,0.34306,3244.1,3243.4,0.55]
[1720993529699,2.3336,3244.2,3243.4,0.55]
[1720993529900,0.02945005,3244.0,3243.4,0.55]
[1720993530195,0.02946537,3243.9,3243.4,0.55]
[1720993530387,2.3336,3244.2,3243.4,0.55]
[1720993530590,0.02946294,3243.8,3243.4,0.55]
[1720993530789,2.67666,3244.2,3243.4,0.55]
[1720993530977,0.02946787,3244.1,3243.4,0.55]
[1720993531997,0.02946787,3244.1,3243.5,2.254]
[1720993532200,1.097,3244.4,3243.6,0.55]
[1720993532505,0.37256616,3244.3,3243.6,0.55]
[1720993534105,0.02950616,3244.3,3243.6,0.55]
[1720993534604,0.02951855,3244.2,3243.6,0.55]
[1720993534805,2.3336,3244.5,3243.6,0.55]
[1720993535670,2.3336,3244.5,3243.7,1.097]
[1720993535905,2.3336,3244.5,3243.8,0.55]
[1720993536204,0.02960816,3244.4,3243.8,0.55]
[1720993536417,0.02960816,3244.4,3243.5,3.351]
[1720993536418,0.02960816,3244.4,3243.6,0.55]
[1720993536615,2.3336,3244.5,3243.6,0.55]
[1720993537020,2.3336,3244.5,3243.7,1.097]
[1720993537199,0.48369358,3244.6,3243.8,0.55]
[1720993537383,0.02959905,3244.5,3243.8,0.55]
[1720993539719,0.02959905,3244.5,3243.9,3.4115]
[1720993539889,0.02959905,3244.5,3244.0,0.55]
[1720993540089,2.86029358,3244.6,3244.0,0.55]
[1720993540290,0.02964336,3244.4,3243.9,0.55]
[1720993540490,0.02964336,3244.4,3243.9,3.9615]
[1720993540713,2.3766,3244.8,3243.9,3.9615]
[1720993541098,0.02974769,3244.7,3243.9,3.9615]
[1720993541296,0.02974769,3244.7,3243.9,2.8645]
[1720993542216,0.02974769,3244.7,3243.9,3.9615]
[1720993542530,3.549,3245.0,3243.9,3.9615]
[1720993542695,0.02975398,3244.6,3243.9,3.9615]
[1720993542891,0.3549,3244.9,3243.9,3.9615]
[1720993543092,0.02975155,3244.5,3243.9,3.9615]
[1720993543292,0.3549,3244.9,3243.9,3.9615]
[1720993543515,0.02974912,3244.4,3243.9,3.9615]
[1720993543709,0.3549,3244.9,3243.9,3.9615]
[1720993544008,0.39039,3244.8,3243.9,3.9615]
[1720993544207,0.02975641,3244.7,3243.9,3.9615]
[1720993544916,3.549,3245.0,3243.9,3.9615]
[1720993545133,0.02976618,3244.6,3243.9,2.8645]
[1720993545308,1.097,3244.8,3243.9,2.8645]
[1720993545635,1.097,3244.8,3243.9,0.55]
[1720993545636,1.4519,3244.8,3243.9,0.55]
[1720993545833,0.02976704,3244.7,3243.7,0.55]
[1720993546040,1.4519,3244.8,3243.7,1.647]
[1720993547797,0.3549,3244.8,3243.7,1.647]
[1720993547997,1.4519,3244.8,3243.7,1.647]
[1720993548332,2.452,3245.0,3243.8,2.3979]
[1720993548644,1.12676061,3244.9,3243.9,1.647]
[1720993548940,1.097,3244.9,3243.9,1.647]
[1720993550532,1.097,3244.9,3243.9,0.55]
[1720993551098,1.097,3244.9,3243.9,1.647]
[1720993551295,0.2049,3244.8,3243.9,0.55]
[1720993551758,1.097,3244.9,3243.9,0.55]
[1720993552744,2.452,3245.0,3243.9,0.55]
[1720993552951,1.097,3244.9,3243.9,0.55]
[1720993553435,1.097,3244.9,3243.9,1.647]
[1720993558237,1.097,3244.9,3244.0,2.4152]
[1720993558441,0.02882731,3244.8,3244.1,0.55]
[1720993566679,2.2761,3244.9,3244.1,0.55]
[1720993571523,2.2667,3245.2,3244.1,0.55]
[1720993571651,0.48359395,3245.3,3244.3,1.097]
[1720993571856,0.48359395,3245.3,3244.4,2.3968]
[1720993572065,1.097,3245.2,3244.5,0.55]
[1720993574377,0.48359395,3245.3,3244.5,0.55]
[1720993574591,1.58059395,3245.3,3244.5,0.55]
[1720993574752,2.45931029,3245.3,3244.5,0.55]
[1720993576167,0.48359395,3245.3,3244.5,0.55]
[1720993576680,1.097,3245.2,3244.5,0.55]
[1720993577062,0.48359395,3245.3,3244.5,0.55]
[1720993577362,1.097,3245.2,3244.5,0.55]
[1720993578557,1.58059395,3245.3,3244.5,0.55]
[1720993579776,1.58059395,3245.3,3244.6,2.3544]
[1720993579983,1.58059395,3245.3,3244.7,0.55]
[1720993580202,0.48359395,3245.3,3244.7,0.55]
[1720993580562,1.58059395,3245.3,3244.7,0.55]
[1720993580874,0.48359395,3245.3,3244.7,0.55]
[1720993581075,3.52173119,3245.3,3244.7,0.55]
[1720993581281,0.33979617,3245.2,3244.7,0.55]
[1720993581467,3.52173119,3245.3,3244.7,0.55]
[1720993581468,1.58059395,3245.3,3244.7,0.55]
[1720993581662,2.15943707,3245.3,3244.7,0.55]
[1720993582072,1.06243707,3245.3,3244.7,0.55]
[1720993582382,2.15943707,3245.3,3244.7,0.55]
[1720993583303,1.58059395,3245.3,3244.7,0.55]
[1720993585521,0.48359395,3245.3,3244.7,0.55]
[1720993585693,1.58059395,3245.3,3244.7,0.55]
[1720993588296,1.60950099,3245.3,3244.7,0.55]
[1720993591286,1.58059395,3245.3,3244.7,0.55]
[1720993591725,1.60950224,3245.3,3244.7,0.55]
[1720993592186,1.58059395,3245.3,3244.7,0.55]
[1720993593719,0.48359395,3245.3,3244.8,2.4598]
[1720993593917,0.0289159,3245.2,3244.9,0.55]
[1720993594288,1.58059395,3245.3,3244.9,0.55]
[1720993594616,0.02700991,3245.2,3244.9,0.55]
[1720993594795,1.93302905,3245.3,3244.9,0.55]
[1720993595198,0.02701069,3245.2,3244.9,0.55]
[1720993595531,1.93302905,3245.3,3244.9,0.55]
[1720993595696,0.02700622,3245.1,3245.0,2.4598]
[1720993595883,1.93302905,3245.3,3245.0,2.4598]
[1720993595884,1.93302905,3245.3,3245.0,3.0098]
[1720993596206,1.93302905,3245.3,3245.0,2.4598]
[1720993596407,1.93302905,3245.3,3245.1,0.55]
[1720993596620,0.02893446,3245.2,3245.1,0.55]
[1720993596823,1.93302905,3245.3,3245.1,0.55]
[1720993596996,0.02700754,3245.2,3245.1,0.55]
[1720993597197,0.48359395,3245.3,3245.1,0.55]
[1720993597425,0.02893442,3245.2,3245.1,0.55]
[1720993597708,1.58059395,3245.3,3245.1,0.55]
[1720993597899,0.02701167,3245.2,3245.1,0.55]
[1720993598353,1.58059395,3245.3,3245.1,0.55]
[1720993598629,0.02700615,3245.2,3245.1,0.55]
[1720993598799,1.58059395,3245.3,3245.1,0.55]
[1720993599129,0.02700615,3245.2,3245.1,0.55]
[1720993599502,0.48359395,3245.3,3245.1,0.55]
[1720993599703,0.0270202,3245.2,3245.1,0.55]
[1720993600242,0.02701389,3245.2,3245.1,0.55]
[1720993600399,0.48359395,3245.3,3245.1,0.55]
[1720993600713,0.02701389,3245.2,3245.1,0.55]
[1720993601135,0.48359395,3245.3,3245.1,0.55]
[1720993601438,0.0270131,3245.2,3245.1,0.55]
[1720993601641,0.48359395,3245.3,3245.1,0.55]
[1720993601793,0.02701509,3245.2,3245.1,0.55]
[1720993602142,0.48359395,3245.3,3245.1,0.55]
[1720993602340,0.02700967,3245.2,3245.1,0.55]
[1720993602700,0.48359395,3245.3,3245.1,0.55]
[1720993602701,4.097,3245.8,3245.1,0.55]
[1720993602901,0.02705043,3245.2,3245.1,0.55]
[1720993603101,1.047,3245.8,3245.1,0.55]
[1720993603323,4.27317886,3246.0,3245.1,0.55]
[1720993603324,0.02705043,3245.2,3245.1,0.55]
[1720993603513,1.097,3245.8,3245.1,0.55]
[1720993604038,0.02706258,3245.7,3245.1,0.55]
[1720993604245,0.02706258,3245.7,3245.2,2.4366]
[1720993604450,1.097,3246.0,3245.3,0.55]
[1720993604663,0.02721564,3245.9,3245.4,2.4366]
[1720993604814,1.097,3246.4,3245.4,2.4366]
[1720993605009,0.02722363,3246.3,3245.6,2.4366]
[1720993605238,0.02722363,3246.3,3245.7,0.55]
[1720993605553,0.02722363,3246.3,3245.8,2.4366]
[1720993605736,0.02722363,3246.3,3245.9,0.55]
[1720993606419,0.02722363,3246.3,3246.0,2.4366]
[1720993606721,1.23164179,3246.6,3246.1,0.55]
[1720993607346,0.02729568,3246.5,3246.2,2.4716]
[1720993607552,0.02729568,3246.5,3246.3,0.55]
[1720993608130,0.13464179,3246.6,3246.3,0.55]
[1720993610218,0.13464179,3246.6,3246.4,2.4885]
[1720993610541,0.13464179,3246.6,3246.5,0.55]
[1720993613119,0.13464179,3246.6,3246.5,2.8282]
[1720993614272,0.13464179,3246.6,3246.5,4.5282]
[1720993614445,0.13464179,3246.6,3246.5,2.8282]
[1720993616540,0.13464179,3246.6,3246.5,0.55]
[1720993616850,0.13464179,3246.6,3246.4,0.55]
[1720993617768,0.13464179,3246.6,3246.5,2.2782]
[1720993617921,0.13464179,3246.6,3246.5,0.55]
[1720993618329,0.13464179,3246.6,3246.2,0.55]
[1720993623103,0.13464179,3246.6,3245.9,5.857]
[1720993623104,1.23164179,3246.6,3245.9,3.06]
[1720993623303,1.097,3246.4,3245.3,3.5373]
[1720993624167,1.097,3246.2,3245.3,2.4403]
[1720993624995,1.097,3246.2,3245.1,1.097]
[1720993624996,2.3274,3246.1,3245.1,1.097]
[1720993626366,1.097,3246.2,3245.0,2.3037]
[1720993626367,1.097,3246.2,3245.2,0.55]
[1720993626592,2.3274,3246.1,3245.1,1.647]
[1720993628392,1.097,3246.0,3245.1,0.55]
[1720993628581,1.097,3246.0,3245.0,1.097]
[1720993628893,0.34244,3245.9,3245.1,0.55]
[1720993630301,0.34244,3245.9,3245.0,1.097]
[1720993630507,0.34244,3245.9,3245.1,0.55]
[1720993632300,3.4244,3246.1,3245.1,0.55]
[1720993633076,2.3274,3246.1,3245.2,1.097]
[1720993633278,2.3274,3246.1,3245.3,0.55]
[1720993635447,3.4244,3246.1,3245.2,0.55]
[1720993635583,0.34244,3246.0,3245.1,1.097]
[1720993635781,3.34244,3246.0,3245.2,0.55]
[1720993637815,2.60324179,3246.6,3245.3,3.3745]
[1720993638015,2.60324179,3246.6,3245.5,1.097]
[1720993638222,2.60324179,3246.6,3245.4,2.25]
[1720993638223,2.60324179,3246.6,3245.6,0.55]
[1720993638419,2.60324179,3246.6,3245.5,1.097]
[1720993638713,1.46702418,3246.5,3245.6,0.55]
[1720993639286,1.46702418,3246.5,3245.5,0.55]
[1720993645034,1.097,3246.3,3245.5,0.55]
[1720993646225,2.4022,3246.2,3245.5,0.55]
[1720993646529,1.097,3246.4,3245.5,2.3567]
[1720993646829,1.097,3246.4,3245.6,0.55]
[1720993649523,1.097,3246.5,3245.6,0.55]
[1720993652642,1.23164179,3246.6,3245.7,2.391]
[1720993652848,1.23164179,3246.6,3245.8,0.55]
[1720993653379,2.3283,3246.5,3245.8,0.55]
[1720993653576,0.35599418,3246.4,3245.6,0.55]
[1720993654145,1.45299418,3246.4,3245.6,0.55]
[1720993655187,1.45299418,3246.4,3245.4,0.55]
[1720993656988,2.4267,3246.3,3245.4,0.55]
[1720993657484,2.4267,3246.3,3245.1,1.647]
[1720993657783,1.48496942,3246.2,3245.1,1.647]
[1720993658006,1.09573136,3246.2,3245.1,1.647]
[1720993658889,0.01814535,3246.0,3245.2,2.4394]
[1720993659110,0.01814535,3246.0,3245.9,1.097]
[1720993659286,0.01814535,3246.0,3245.8,2.4394]
[1720993659626,0.01814535,3246.0,3245.9,0.55]
[1720993663790,0.01814535,3246.0,3245.5,2.46494]
[1720993663791,0.01814535,3246.0,3245.5,2.4394]
[1720993663995,0.01814535,3246.0,3245.4,1.097]
[1720993665075,0.01814535,3246.0,3245.2,6.5364]
[1720993665472,0.01814535,3246.0,3245.3,0.55]
[1720993666669,0.01814535,3246.0,3245.3,1.647]
[1720993666869,0.01814535,3246.0,3245.3,4.647]
[1720993668567,0.01814535,3246.0,3245.3,1.647]
[1720993668963,0.01814535,3246.0,3245.5,1.097]
[1720993669163,0.01814535,3246.0,3245.6,0.55]
[1720993669622,0.01814535,3246.0,3245.5,0.55]
[1720993670417,0.01814535,3246.0,3245.3,1.647]
[1720993670709,0.01814535,3246.0,3245.5,1.097]
[1720993670916,0.01814535,3246.0,3245.6,0.55]
[1720993672523,0.01814535,3246.0,3245.7,2.4394]
[1720993672734,0.01814535,3246.0,3245.8,0.55]
[1720993675194,0.01814535,3246.0,3245.6,0.55]
[1720993680108,2.3828,3246.4,3245.6,0.55]
[1720993680109,1.15094535,3246.4,3245.6,0.55]
[1720993681541,0.1160225,3246.6,3245.6,0.55]
[1720993681711,0.1160225,3246.6,3245.5,0.55]
[1720993683007,2.4313,3246.4,3245.5,0.55]
[1720993683236,2.4313,3246.4,3245.3,3.0]
[1720993683237,2.4313,3246.4,3245.4,0.55]
[1720993683422,2.78413,3246.3,3245.4,0.55]
[1720993683837,2.78413,3246.3,3245.3,1.647]
[1720993684850,3.0,3246.2,3245.3,1.647]
[1720993687625,3.0,3246.2,3245.3,0.55]
[1720993687837,3.0,3246.2,3245.4,1.097]
[1720993688054,0.1160225,3246.6,3245.6,4.055]
[1720993688235,0.1160225,3246.6,3245.7,0.55]
[1720993692112,0.1160225,3246.6,3245.7,3.01473]
[1720993692364,0.1160225,3246.6,3245.8,1.097]
[1720993692660,0.1160225,3246.6,3245.9,0.55]
[1720993693518,0.1160225,3246.6,3246.0,2.3924]
[1720993693739,0.1160225,3246.6,3246.1,0.55]
[1720993694714,0.1160225,3246.6,3246.1,1.647]
[1720993695217,0.1160225,3246.6,3246.1,0.55]
[1720993697730,0.48328067,3247.3,3246.9,1.7]
[1720993697941,0.013,3247.4,3247.1,4.75682]
[1720993698146,0.013,3247.4,3247.3,4.16358]
[1720993698341,0.013,3247.4,3247.3,1.7]
[1720993698543,1e-08,3247.4,3247.3,3.347]
[1720993698853,1e-08,3247.4,3247.3,7.71358]
[1720993699054,1e-08,3247.4,3247.3,8.81058]
[1720993699254,1e-08,3247.4,3247.3,5.25]
[1720993699456,1e-08,3247.4,3247.3,3.347]
[1720993702557,1e-08,3247.4,3247.3,1.7]
[1720993703753,1e-08,3247.4,3247.3,2.85857869]
[1720993703962,0.0011,3247.9,3247.4,2.3255]
[1720993704143,0.0011,3247.9,3247.7,1.097]
[1720993704754,0.0011,3247.9,3247.7,1.647]
[1720993704953,0.0011,3247.9,3247.7,3.347]
[1720993706342,0.0011,3247.9,3247.7,2.25]
[1720993707329,0.0011,3247.9,3247.7,2.40821526]
[1720993709558,0.0011,3247.9,3247.7,2.53161226]